bitfinex/quotes_BTCUSD_20240719
["timestamp","ask_amount","ask_price","bid_price","bid_amount"]
[1721412296919,0.031794,66676.0,66673.0,0.000924]
[1721412297121,0.031794,66676.0,66673.0,0.001924]
[1721412297322,0.15438174,66675.0,66673.0,0.001924]
[1721412297523,0.040794,66676.0,66673.0,0.001924]
[1721412297524,0.025794,66674.0,66673.0,0.001924]
[1721412297702,0.025794,66674.0,66673.0,0.000924]
[1721412297703,0.023,66674.0,66673.0,0.000924]
[1721412297917,0.023,66676.0,66674.0,0.001]
[1721412298274,0.002794,66675.0,66674.0,0.001]
[1721412298923,0.034,66676.0,66674.0,0.001]
[1721412299068,0.034,66676.0,66675.0,0.13837479]
[1721412299266,0.03381957,66676.0,66675.0,0.13837479]
[1721412299469,0.02281957,66676.0,66675.0,0.13837479]
[1721412300087,0.00891195,66678.0,66675.0,0.13837479]
[1721412300298,0.0602,66688.0,66675.0,0.13837479]
[1721412300490,0.002794,66687.0,66675.0,0.13837479]
[1721412300691,0.002794,66687.0,66675.0,0.07717479]
[1721412300890,0.002794,66687.0,66673.0,0.07809879]
[1721412300891,0.15438174,66686.0,66673.0,0.07809879]
[1721412301114,0.06896839,66688.0,66680.0,0.07717479]
[1721412301115,0.002794,66685.0,66680.0,0.07717479]
[1721412301342,0.06390433,66693.0,66680.0,0.07717479]
[1721412301659,0.01,66675.0,66673.0,0.07809879]
[1721412301847,0.023,66674.0,66673.0,0.07809879]
[1721412303100,0.023,66674.0,66673.0,0.08009879]
[1721412303419,0.023,66679.0,66675.0,0.001]
[1721412304027,0.023,66679.0,66673.0,0.004924]
[1721412304226,0.01817887,66678.0,66673.0,0.004924]
[1721412304430,0.023,66677.0,66673.0,0.007924]
[1721412304969,0.023,66677.0,66673.0,0.000924]
[1721412305489,0.01814958,66676.0,66673.0,0.000924]
[1721412305700,0.023,66675.0,66673.0,0.000924]
[1721412306111,0.023,66676.0,66673.0,0.000924]
[1721412306356,0.01816283,66675.0,66673.0,0.001924]
[1721412306490,0.023,66674.0,66673.0,0.001924]
[1721412306710,0.04116283,66674.0,66673.0,0.000924]
[1721412307113,0.04116283,66674.0,66673.0,0.001924]
[1721412307754,0.04116283,66674.0,66673.0,0.000924]
[1721412307961,0.027,66674.0,66673.0,0.000924]
[1721412309340,0.04809421,66674.0,66673.0,0.000924]
[1721412309749,0.04509421,66674.0,66673.0,0.000924]
[1721412309957,0.04509681,66674.0,66673.0,0.001924]
[1721412310171,0.04109681,66674.0,66673.0,0.001924]
[1721412310402,0.19847855,66674.0,66673.0,0.000924]
[1721412310823,0.19547855,66674.0,66673.0,0.000924]
[1721412311243,0.19947855,66674.0,66673.0,0.000924]
[1721412311698,0.22032719,66674.0,66673.0,0.000924]
[1721412311913,0.3808078,66674.0,66673.0,0.000924]
[1721412312128,0.3768078,66674.0,66673.0,0.000924]
[1721412312340,0.3858078,66674.0,66673.0,0.000924]
[1721412312543,0.39741748,66674.0,66673.0,0.001924]
[1721412312957,0.35102404,66674.0,66673.0,0.001924]
[1721412313168,0.39760899,66674.0,66673.0,0.001924]
[1721412313590,0.39777735,66674.0,66673.0,0.001924]
[1721412315245,0.47727735,66674.0,66673.0,0.001924]
[1721412315449,0.54167735,66674.0,66673.0,0.001924]
[1721412316046,0.54109453,66674.0,66673.0,0.001924]
[1721412318703,0.24281279,66674.0,66673.0,0.001924]
[1721412318924,0.24020311,66674.0,66673.0,0.001924]
[1721412319363,0.24024874,66674.0,66673.0,0.001924]
[1721412320314,0.14024874,66674.0,66673.0,0.001924]
[1721412320512,0.10525081,66674.0,66673.0,0.001924]
[1721412320715,0.14019408,66674.0,66673.0,0.001924]
[1721412320935,0.10525081,66674.0,66673.0,0.001924]
[1721412321772,0.05905903,66674.0,66673.0,0.001924]
[1721412322197,0.018,66674.0,66673.0,1.03396174]
[1721412322387,0.07734,66703.0,66673.0,1.68390374]
[1721412322388,0.00881459,66692.0,66673.0,1.68390374]
[1721412322590,0.01214729,66703.0,66696.0,0.0825]
[1721412322846,0.00084,66703.0,66702.0,0.07717479]
[1721412323069,0.01877183,66703.0,66702.0,0.07717479]
[1721412323279,0.01877183,66703.0,66702.0,0.14017479]
[1721412324328,0.01877183,66703.0,66702.0,0.001]
[1721412324745,0.01877183,66703.0,66693.0,0.064]
[1721412324896,0.01793183,66702.0,66693.0,0.064]
[1721412325100,0.01793183,66702.0,66689.0,0.15817479]
[1721412325362,0.08143183,66702.0,66689.0,0.15817479]
[1721412325482,0.04372583,66701.0,66689.0,0.15817479]
[1721412325683,0.01793183,66700.0,66689.0,0.15817479]
[1721412325930,0.025794,66701.0,66689.0,0.15817479]
[1721412325931,0.04090908,66699.0,66689.0,0.15817479]
[1721412326127,0.19808482,66698.0,66683.0,0.1417]
[1721412326304,0.01790908,66697.0,66683.0,0.1417]
[1721412326510,0.025794,66696.0,66683.0,0.1417]
[1721412326677,0.01790908,66695.0,66688.0,0.07717479]
[1721412326877,0.025794,66694.0,66688.0,0.07717479]
[1721412327134,0.01790908,66693.0,66689.0,0.001]
[1721412327288,0.01790908,66693.0,66688.0,0.07717479]
[1721412327289,0.023,66692.0,66688.0,0.07717479]
[1721412327489,0.01790908,66691.0,66688.0,0.07717479]
[1721412327699,0.023,66690.0,66688.0,0.07717479]
[1721412327896,0.01790908,66689.0,66688.0,0.07717479]
[1721412328169,0.01790908,66689.0,66683.0,0.1417]
[1721412328170,0.04090908,66689.0,66683.0,0.1417]
[1721412328377,0.04090908,66689.0,66675.0,0.1463]
[1721412328378,0.023,66688.0,66675.0,0.1463]
[1721412328588,0.02082139,66687.0,66675.0,0.1463]
[1721412328769,0.04102739,66686.0,66675.0,0.1463]
[1721412329040,0.023,66688.0,66683.0,0.002]
[1721412329041,0.02082139,66685.0,66683.0,0.002]
[1721412329232,0.01802739,66684.0,66683.0,0.002]
[1721412329789,0.0089999,66689.0,66682.0,0.149965]
[1721412329986,0.0089999,66689.0,66680.0,0.299939]
[1721412329987,0.001,66689.0,66683.0,0.07717479]
[1721412330448,0.00868715,66700.0,66684.0,0.0804986]
[1721412330656,0.001,66688.0,66684.0,0.0804986]
[1721412330860,0.0635,66702.0,66685.0,0.0611]
[1721412330861,0.002794,66698.0,66685.0,0.0611]
[1721412330994,0.0635,66702.0,66685.0,0.0611]
[1721412330995,0.01812075,66697.0,66685.0,0.0611]
[1721412331198,0.025794,66701.0,66685.0,0.0611]
[1721412331199,0.04112075,66696.0,66685.0,0.0611]
[1721412331412,0.123,66701.0,66685.0,0.0611]
[1721412331607,0.01811459,66700.0,66685.0,0.0611]
[1721412331831,0.025794,66699.0,66686.0,0.00509019]
[1721412332049,0.01811459,66698.0,66686.0,0.00509019]
[1721412332238,0.001,66689.0,66686.0,0.00509019]
[1721412332409,0.00080883,66689.0,66686.0,0.00509019]
[1721412332825,0.023,66697.0,66686.0,0.00509019]
[1721412333035,0.02088183,66696.0,66686.0,0.00509019]
[1721412333239,0.04108783,66695.0,66684.0,0.0775]
[1721412333457,0.02088183,66694.0,66687.0,0.00508806]
[1721412333615,0.02088183,66694.0,66684.0,0.0775]
[1721412333616,0.04108783,66693.0,66685.0,0.00509231]
[1721412333815,0.001,66689.0,66684.0,0.0775]
[1721412334116,0.02038183,66688.0,66685.0,0.00509231]
[1721412334317,0.023,66691.0,66685.0,0.00509231]
[1721412334318,0.04108783,66687.0,66685.0,0.00509231]
[1721412334512,0.01808783,66686.0,66685.0,0.00509231]
[1721412334714,0.04115913,66686.0,66685.0,0.00509231]
[1721412334939,0.01815913,66686.0,66685.0,0.00509231]
[1721412335140,0.023,66686.0,66685.0,0.00509231]
[1721412335341,0.04115913,66686.0,66685.0,0.00509231]
[1721412335559,0.04115913,66686.0,66685.0,0.0822671]
[1721412335907,0.00885264,66691.0,66685.0,0.0822671]
[1721412336057,0.0411753,66690.0,66685.0,0.0822671]
[1721412336256,0.0181753,66689.0,66685.0,0.2322251]
[1721412336502,0.001,66686.0,66685.0,0.0872671]
[1721412336667,0.001,66686.0,66685.0,0.0912671]
[1721412336876,0.001,66686.0,66685.0,0.0862671]
[1721412337311,0.001,66686.0,66685.0,0.5927421]
[1721412337516,0.002294,66700.0,66686.0,0.299909]
[1721412337667,0.01811972,66699.0,66687.0,0.149954]
[1721412337876,0.04112027,66698.0,66687.0,0.15504206]
[1721412338080,0.023,66702.0,66687.0,0.15504206]
[1721412338081,0.04112027,66697.0,66687.0,0.15504206]
[1721412338441,0.01811795,66696.0,66692.0,0.07717479]
[1721412338593,0.04111795,66695.0,66692.0,0.07717479]
[1721412338812,0.01811795,66694.0,66693.0,0.00507531]
[1721412339064,0.04111795,66694.0,66685.0,0.13777479]
[1721412339229,0.04111795,66693.0,66685.0,0.28773279]
[1721412339409,0.01811795,66692.0,66686.0,0.30500219]
[1721412339603,0.023,66691.0,66688.0,0.149951]
[1721412339783,0.023,66691.0,66687.0,0.15504106]
[1721412339990,0.023,66691.0,66687.0,0.00508806]
[1721412340191,0.023,66691.0,66688.0,0.14995]
[1721412340506,0.001,66692.0,66690.0,0.05]
[1721412340708,0.001,66692.0,66691.0,0.38662491]
[1721412340929,0.001,66692.0,66691.0,0.08417731]
[1721412341125,0.001,66692.0,66691.0,0.23412231]
[1721412342141,0.001,66692.0,66691.0,0.53401231]
[1721412342550,0.00084,66703.0,66695.0,0.149936]
[1721412342748,0.01819791,66702.0,66695.0,0.149936]
[1721412343030,0.01819791,66702.0,66696.0,0.00447959]
[1721412343031,0.023,66701.0,66696.0,0.00447959]
[1721412343235,0.01819791,66700.0,66696.0,0.00447959]
[1721412343407,0.023,66699.0,66696.0,0.00447959]
[1721412343607,0.01819791,66698.0,66696.0,0.00447959]
[1721412343752,0.023,66697.0,66696.0,0.00447959]
[1721412343950,0.04119791,66697.0,66694.0,0.149937]
[1721412344174,0.0181817,66696.0,66691.0,0.0793]
[1721412344373,0.023,66695.0,66691.0,0.0793]
[1721412344680,0.0181817,66694.0,66691.0,0.0793]
[1721412344890,0.023,66693.0,66691.0,0.0793]
[1721412345091,0.023,66695.0,66691.0,0.0793]
[1721412345306,0.01818774,66694.0,66692.0,0.07717479]
[1721412345507,0.023,66693.0,66692.0,0.07717479]
[1721412346665,0.04120179,66693.0,66692.0,0.08166288]
[1721412346936,0.04220179,66693.0,66692.0,0.09566288]
[1721412347283,0.17738174,66693.0,66692.0,0.01048809]
[1721412347655,0.17738174,66693.0,66678.0,0.4753]
[1721412347656,0.34329134,66693.0,66678.0,0.4753]
[1721412347863,0.06821252,66692.0,66678.0,0.4753]
[1721412348063,0.06591852,66691.0,66681.0,0.07717479]
[1721412348268,0.02048817,66690.0,66681.0,0.07717479]
[1721412348413,0.01819417,66689.0,66688.0,0.07717479]
[1721412348599,0.04119417,66689.0,66688.0,0.07717479]
[1721412348801,0.04119417,66689.0,66681.0,0.07717479]
[1721412349158,0.04119417,66688.0,66681.0,0.07717479]
[1721412349386,0.01819417,66687.0,66681.0,0.07717479]
[1721412349501,0.023,66686.0,66681.0,0.07717479]
[1721412349707,0.01819417,66685.0,66681.0,0.07717479]
[1721412349909,0.01819417,66685.0,66684.0,0.513083]
[1721412350118,0.00888657,66698.0,66687.0,0.149953]
[1721412350312,0.04562342,66703.0,66691.0,0.07717479]
[1721412350313,0.08293631,66697.0,66691.0,0.07717479]
[1721412350560,0.04781828,66696.0,66691.0,0.07717479]
[1721412350762,0.04781828,66695.0,66691.0,0.07717479]
[1721412350983,0.04781828,66694.0,66691.0,0.07717479]
[1721412351179,0.04791142,66693.0,66681.0,0.08217479]
[1721412351466,0.15438174,66702.0,66681.0,0.08217479]
[1721412351467,0.0637,66691.0,66681.0,0.08217479]
[1721412351738,0.07320542,66690.0,66681.0,0.08217479]
[1721412351958,0.08300159,66689.0,66681.0,0.08217479]
[1721412352124,0.001,66685.0,66681.0,0.08917479]
[1721412352272,0.001,66685.0,66681.0,0.08417479]
[1721412352503,0.023,66688.0,66681.0,0.07717479]
[1721412352703,0.0637,66691.0,66681.0,0.07717479]
[1721412352704,0.04786877,66687.0,66681.0,0.07717479]
[1721412352928,0.023,66686.0,66681.0,0.07717479]
[1721412353102,0.023,66690.0,66681.0,0.07717479]
[1721412353322,0.05014653,66689.0,66681.0,0.08917479]
[1721412353524,0.001,66685.0,66681.0,0.08917479]
[1721412353726,0.001,66685.0,66681.0,0.08217479]
[1721412353921,0.001,66685.0,66681.0,0.08117479]
[1721412354146,0.001,66685.0,66681.0,0.08517479]
[1721412354719,0.001,66685.0,66682.0,0.07717479]
[1721412354920,0.001,66685.0,66681.0,0.008]
[1721412355414,0.08289124,66684.0,66678.0,0.4753]
[1721412355623,0.05005991,66683.0,66681.0,0.002]
[1721412355884,0.05005991,66683.0,66681.0,0.007]
[1721412355885,0.04776591,66682.0,66681.0,0.007]
[1721412356087,0.04776591,66682.0,66681.0,0.005]
[1721412356286,0.023,66682.0,66681.0,0.007]
[1721412356460,0.023,66682.0,66678.0,0.4813]
[1721412356461,0.10587867,66682.0,66678.0,0.4813]
[1721412356634,0.025294,66681.0,66678.0,0.4813]
[1721412356838,0.025294,66681.0,66678.0,0.006]
[1721412356839,0.37708862,66680.0,66678.0,0.006]
[1721412357015,0.08300688,66679.0,66673.0,0.000924]
[1721412357215,0.05016443,66678.0,66673.0,0.000924]
[1721412357441,0.04787043,66677.0,66675.0,0.07717479]
[1721412357640,0.025294,66676.0,66675.0,0.07717479]
[1721412357845,0.001,66682.0,66675.0,0.07717479]
[1721412358203,0.0482834,66681.0,66675.0,0.07717479]
[1721412358376,0.025294,66680.0,66676.0,0.00437439]
[1721412358602,0.0482834,66679.0,66673.0,0.000924]
[1721412358784,0.025294,66678.0,66673.0,0.000924]
[1721412358921,0.025294,66678.0,66674.0,0.00437903]
[1721412359121,0.023,66677.0,66675.0,0.002]
[1721412359351,0.0758,66680.0,66676.0,0.00437439]
[1721412359560,0.07113475,66679.0,66678.0,0.003]
[1721412359756,0.13443486,66679.0,66678.0,0.003]
[1721412359957,0.13443486,66679.0,66673.0,0.000924]
[1721412359958,0.18782092,66679.0,66673.0,0.000924]
[1721412360161,0.10381492,66678.0,66675.0,0.006]
[1721412360401,0.10381492,66678.0,66675.0,0.014]
[1721412360402,0.28090266,66677.0,66675.0,0.014]
[1721412360605,0.12681492,66676.0,66675.0,0.014]
[1721412360964,0.28119666,66676.0,66675.0,0.014]
[1721412361188,0.37890266,66676.0,66675.0,0.014]
[1721412361607,0.37890266,66676.0,66673.0,0.000924]
[1721412361808,0.35819666,66675.0,66673.0,0.000924]
[1721412362000,0.12452092,66674.0,66673.0,0.000924]
[1721412362208,0.28119666,66674.0,66673.0,0.000924]
[1721412362341,0.27738174,66674.0,66673.0,0.000924]
[1721412362571,0.34397568,66674.0,66673.0,0.000924]
[1721412363154,0.37919209,66674.0,66673.0,0.000924]
[1721412363358,0.37919209,66674.0,66673.0,0.004924]
[1721412364882,0.25619209,66668.0,66664.0,1e-08]
[1721412365088,0.18959394,66667.0,66664.0,1e-08]
[1721412365283,0.06659394,66666.0,66665.0,0.07717479]
[1721412365539,0.023,66666.0,66665.0,0.07717479]
[1721412365726,0.04130116,66666.0,66665.0,0.07717479]
[1721412366895,0.04130116,66666.0,66665.0,0.08017479]
[1721412367753,0.03630116,66666.0,66665.0,0.08017479]
[1721412367963,0.03630116,66666.0,66665.0,0.08217479]
[1721412368171,0.03630116,66666.0,66665.0,0.16487479]
[1721412368814,0.03633531,66666.0,66665.0,0.16487479]
[1721412370754,0.03633531,66666.0,66665.0,0.005]
[1721412371835,0.018,66666.0,66665.0,0.005]
[1721412372012,0.03634809,66666.0,66665.0,0.005]
[1721412372135,0.09944809,66666.0,66665.0,0.005]
[1721412373303,0.03616763,66666.0,66665.0,0.005]
[1721412374281,0.03616763,66666.0,66665.0,0.0801]
[1721412374729,0.03616763,66666.0,66665.0,0.08525734]
[1721412375164,0.03614826,66666.0,66665.0,0.08525734]
[1721412375357,0.03614826,66666.0,66665.0,0.01015734]
[1721412377739,0.00614826,66666.0,66665.0,0.01015734]
[1721412377941,0.07124826,66666.0,66665.0,0.01015734]
[1721412378174,0.0651,66666.0,66665.0,0.005]
[1721412378867,0.0651,66666.0,66661.0,0.00803901]
[1721412379071,0.0651,66666.0,66662.0,0.07717479]
[1721412379278,0.0651,66666.0,66662.0,0.08182405]
[1721412380155,0.023,66665.0,66662.0,0.08182405]
[1721412381603,0.024,66665.0,66662.0,0.08582405]
[1721412381799,0.001,66665.0,66662.0,0.08582405]
[1721412382871,0.001,66665.0,66662.0,0.08882405]
[1721412383468,0.001,66665.0,66664.0,0.0799]
[1721412383866,0.001,66665.0,66664.0,0.1458]
[1721412384505,0.00907941,66667.0,66664.0,0.1458]
[1721412384665,0.002294,66678.0,66665.0,0.0005]
[1721412384895,0.08241636,66677.0,66669.0,0.07717479]
[1721412385098,0.10771036,66676.0,66669.0,0.07717479]
[1721412385346,0.0608,66674.0,66665.0,0.0005]
[1721412385561,0.08471036,66673.0,66670.0,0.07717479]
[1721412385727,0.04854692,66672.0,66670.0,0.07717479]
[1721412386119,0.023,66671.0,66670.0,0.07717479]
[1721412386316,0.07161244,66671.0,66670.0,0.07717479]
[1721412386525,0.07161244,66671.0,66664.0,0.0045]
[1721412386903,0.023,66671.0,66664.0,0.0045]
[1721412387133,0.023,66677.0,66664.0,0.0045]
[1721412387369,0.08485514,66676.0,66665.0,0.00464161]
[1721412387641,0.10556114,66675.0,66666.0,0.0005]
[1721412387884,0.10773399,66674.0,66665.0,0.00464161]
[1721412388124,0.10543999,66673.0,66670.0,0.001]
[1721412388379,0.10173399,66672.0,66670.0,0.001]
[1721412388582,0.12243999,66671.0,66658.0,0.0005]
[1721412388788,0.10173399,66670.0,66658.0,0.0005]
[1721412389003,0.12243999,66669.0,66666.0,0.001]
[1721412389187,0.023,66671.0,66666.0,0.001]
[1721412389188,0.10173399,66668.0,66666.0,0.001]
[1721412389396,0.12243999,66667.0,66663.0,0.07717479]
[1721412389642,0.023,66671.0,66663.0,0.07717479]
[1721412389643,0.09086882,66666.0,66663.0,0.07717479]
[1721412389791,0.06557482,66665.0,66663.0,0.07717479]
[1721412389995,0.17738174,66671.0,66663.0,0.07717479]
[1721412389996,0.06557482,66664.0,66663.0,0.07717479]
[1721412390220,0.08857482,66664.0,66663.0,0.07717479]
[1721412390429,0.38325656,66664.0,66655.0,0.0005]
[1721412390627,0.38325656,66664.0,66653.0,0.009207]
[1721412390628,0.27910964,66663.0,66653.0,0.009207]
[1721412390867,0.0994339,66662.0,66653.0,0.009207]
[1721412391068,0.37687637,66662.0,66653.0,0.009207]
[1721412391239,0.37917037,66662.0,66653.0,0.009207]
[1721412391574,0.37687637,66662.0,66653.0,0.009207]
[1721412392130,0.37687637,66662.0,66661.0,0.00903901]
[1721412392939,0.37187637,66662.0,66661.0,0.00903901]
[1721412394063,0.27738174,66662.0,66661.0,0.00903901]
[1721412394251,0.34336773,66662.0,66661.0,0.00903901]
[1721412394467,0.34336773,66662.0,66661.0,0.01369082]
[1721412394648,0.34277375,66662.0,66661.0,0.00903901]
[1721412395177,0.18839201,66662.0,66661.0,0.00903901]
[1721412395383,0.18839201,66662.0,66661.0,0.15193901]
[1721412395384,0.06539201,66662.0,66661.0,0.15193901]
[1721412395820,0.01633627,66662.0,66661.0,0.15193901]
[1721412396225,0.01633627,66663.0,66661.0,0.15193901]
[1721412396422,0.06552691,66662.0,66661.0,0.15193901]
[1721412396635,0.06552691,66662.0,66661.0,0.08883901]
[1721412397062,0.06552691,66662.0,66661.0,0.00903901]
[1721412397063,0.08852691,66662.0,66661.0,0.00903901]
[1721412397267,0.08864138,66662.0,66661.0,0.00903901]
[1721412398038,0.08904055,66662.0,66661.0,0.00903901]
[1721412398235,0.08904055,66662.0,66661.0,0.01003901]
[1721412398441,0.08904055,66662.0,66661.0,0.00903901]
[1721412398644,0.3107408,66662.0,66661.0,0.00903901]
[1721412398898,0.24442229,66662.0,66661.0,0.00803901]
[1721412399113,0.53798538,66662.0,66661.0,0.00803901]
[1721412399283,0.40822229,66662.0,66661.0,0.00803901]
[1721412399506,0.52041982,66662.0,66661.0,0.00803901]
[1721412399821,0.51941982,66662.0,66661.0,0.00803901]
[1721412399952,0.40922229,66662.0,66661.0,0.00803901]
[1721412400158,0.41122229,66662.0,66661.0,0.00803901]
[1721412400353,0.34518174,66662.0,66661.0,0.00803901]
[1721412400650,0.41134052,66662.0,66661.0,0.00803901]
[1721412400871,0.40934052,66662.0,66661.0,0.00803901]
[1721412401023,0.44580165,66662.0,66661.0,0.00803901]
[1721412401809,0.55815279,66662.0,66661.0,0.00803901]
[1721412402011,0.44580165,66662.0,66661.0,0.00803901]
[1721412402212,0.53568212,66662.0,66661.0,0.00803901]
[1721412402406,0.45457196,66662.0,66661.0,0.00803901]
[1721412403195,0.45457196,66662.0,66661.0,0.00024554]
[1721412403620,0.53857321,66662.0,66654.0,0.07242033]
[1721412403828,0.08989106,66656.0,66655.0,0.0005]
[1721412404021,0.08989106,66656.0,66654.0,0.07242033]
[1721412404022,0.002294,66655.0,66654.0,0.07242033]
[1721412404337,0.27034453,66655.0,66654.0,0.07242033]
[1721412404587,0.26805053,66655.0,66654.0,0.07242033]
[1721412404736,0.22362465,66655.0,66654.0,0.07242033]
[1721412405504,0.29105053,66655.0,66654.0,0.07242033]
[1721412405704,0.29105053,66655.0,66654.0,0.07342033]
[1721412405705,0.22462465,66655.0,66654.0,0.07342033]
[1721412406683,0.29305053,66655.0,66654.0,0.07842033]
[1721412407599,0.22462465,66655.0,66654.0,0.07342033]
[1721412408020,0.22462465,66655.0,66654.0,0.07242033]
[1721412408021,0.22762465,66655.0,66654.0,0.07242033]
[1721412408231,0.23062465,66655.0,66654.0,0.07242033]
[1721412409472,0.19712615,66655.0,66654.0,0.07242033]
[1721412410108,0.19721134,66655.0,66654.0,0.07242033]
[1721412410458,0.09721134,66655.0,66654.0,0.07242033]
[1721412410669,0.19721134,66655.0,66654.0,0.07242033]
[1721412411126,0.24214525,66655.0,66654.0,0.07242033]
[1721412411896,0.25113223,66655.0,66654.0,0.07242033]
[1721412412527,0.20619832,66655.0,66654.0,0.13362033]
[1721412413082,0.20619832,66655.0,66654.0,0.13830595]
[1721412413397,0.20619832,66655.0,66654.0,0.00468562]
[1721412413398,0.18973527,66655.0,66654.0,0.00468562]
[1721412413553,0.2062667,66655.0,66654.0,0.00468562]
[1721412413923,0.002294,66654.0,66653.0,0.009207]
[1721412414151,0.09243964,66654.0,66653.0,0.009207]
[1721412414382,0.19014564,66654.0,66653.0,0.009207]
[1721412415298,0.19214564,66654.0,66653.0,0.009207]
[1721412415711,0.19514564,66654.0,66653.0,0.009207]
[1721412416640,0.19492356,66654.0,66653.0,0.009207]
[1721412418407,0.22839947,66654.0,66653.0,0.009207]
[1721412418819,0.128,66654.0,66653.0,0.009207]
[1721412419028,0.22807077,66654.0,66653.0,0.009207]
[1721412419436,0.27299845,66654.0,66653.0,0.009207]
[1721412419960,0.2726098,66654.0,66653.0,0.009207]
[1721412420478,0.22768248,66654.0,66653.0,0.009207]
[1721412422018,0.20468248,66654.0,66653.0,0.009207]
[1721412422215,0.20468248,66654.0,66653.0,0.086007]
[1721412422415,0.20468248,66654.0,66653.0,0.09069517]
[1721412422416,0.17128951,66654.0,66653.0,0.09069517]
[1721412422617,0.07128951,66654.0,66653.0,0.09069517]
[1721412422819,0.02141973,66654.0,66653.0,0.09069517]
[1721412423273,0.06935146,66654.0,66653.0,0.09069517]
[1721412423474,0.07135146,66654.0,66653.0,0.09069517]
[1721412424068,0.07235146,66654.0,66653.0,0.09069517]
[1721412424571,0.10275597,66654.0,66653.0,0.09069517]
[1721412424793,0.20575597,66654.0,66653.0,0.09069517]
[1721412425005,0.20575597,66654.0,66653.0,0.08569517]
[1721412425236,0.20275597,66654.0,66653.0,0.08569517]
[1721412425638,0.20457169,66654.0,66653.0,0.08569517]
[1721412428453,0.20457169,66654.0,66653.0,0.00889517]
[1721412428676,0.128,66654.0,66653.0,0.00889517]
[1721412428892,0.22776617,66654.0,66653.0,0.00889517]
[1721412429100,0.12776617,66654.0,66653.0,0.00889517]
[1721412429243,0.20476617,66654.0,66653.0,0.00889517]
[1721412430470,0.20476617,66654.0,66653.0,0.08509517]
[1721412430471,0.24970291,66654.0,66653.0,0.08509517]
[1721412430704,0.1713313,66654.0,66653.0,0.145307]
[1721412430879,0.1713313,66654.0,66653.0,0.14999517]
[1721412431230,0.0713313,66654.0,66653.0,0.14999517]
[1721412431442,0.1713313,66654.0,66653.0,0.14999517]
[1721412432030,0.16257297,66654.0,66653.0,0.14999517]
[1721412432257,0.16257297,66654.0,66653.0,0.08509517]
[1721412432389,0.06257297,66654.0,66653.0,0.08509517]
[1721412432587,0.16257297,66654.0,66653.0,0.08509517]
[1721412433665,0.06257297,66654.0,66653.0,0.08509517]
[1721412435076,0.04614348,66654.0,66653.0,0.08509517]
[1721412435269,0.06258271,66654.0,66653.0,0.08509517]
[1721412435476,0.16258271,66654.0,66653.0,0.08509517]
[1721412435701,0.16265954,66654.0,66653.0,0.08509517]
[1721412438271,0.1462082,66654.0,66653.0,0.08509517]
[1721412438401,0.1462082,66654.0,66653.0,0.00889517]
[1721412438402,0.08566321,66654.0,66653.0,0.00889517]
[1721412438747,0.23066729,66654.0,66653.0,0.004207]
[1721412438922,0.2892277,66654.0,66653.0,0.004207]
[1721412439480,0.22172158,66654.0,66653.0,0.004207]
[1721412439679,0.33423179,66654.0,66653.0,0.004207]
[1721412441448,0.22235612,66654.0,66653.0,0.004207]
[1721412441653,0.33489264,66654.0,66653.0,0.004207]
[1721412442234,0.48927438,66654.0,66653.0,0.004207]
[1721412442481,0.37673786,66654.0,66653.0,0.004207]
[1721412444738,0.37686023,66654.0,66653.0,0.004207]
[1721412445302,0.5119446,66654.0,66653.0,0.004207]
[1721412445633,0.37686023,66654.0,66653.0,0.004207]
[1721412445926,0.43672535,66654.0,66653.0,0.004207]
[1721412446472,0.52037966,66654.0,66653.0,0.004207]
[1721412446672,0.52037966,66654.0,66651.0,0.002]
[1721412446874,0.50659782,66653.0,66652.0,0.07717479]
[1721412447117,0.36924901,66653.0,66652.0,0.07717479]
[1721412447543,0.50430441,66653.0,66652.0,0.07717479]
[1721412447919,0.50447366,66653.0,66651.0,0.002]
[1721412448138,0.0943486,66652.0,66651.0,0.002]
[1721412448376,0.24643634,66652.0,66651.0,0.0014]
[1721412448576,0.34643634,66652.0,66651.0,0.0014]
[1721412448713,0.36943634,66652.0,66651.0,0.0014]
[1721412449340,0.36943634,66652.0,66641.0,0.002]
[1721412449341,0.51073634,66652.0,66641.0,0.002]
[1721412449506,0.1413,66642.0,66641.0,0.002]
[1721412449702,0.12594969,66642.0,66641.0,0.002]
[1721412449908,0.14894969,66642.0,66641.0,0.002]
[1721412450355,0.08144725,66642.0,66641.0,0.002]
[1721412450980,0.023,66642.0,66641.0,0.002]
[1721412451254,0.01662154,66642.0,66641.0,0.002]
[1721412451610,0.01661704,66642.0,66641.0,0.002]
[1721412451811,0.18998083,66651.0,66641.0,0.002]
[1721412451812,0.04499041,66648.0,66642.0,0.1965]
[1721412452016,0.00084,66655.0,66653.0,0.1404]
[1721412452221,0.00084,66655.0,66654.0,0.0005]
[1721412452799,0.01744535,66655.0,66654.0,0.0005]
[1721412453200,0.01844535,66655.0,66654.0,0.0005]
[1721412453624,0.01744535,66655.0,66654.0,0.0005]
[1721412453853,0.01844535,66655.0,66654.0,0.0005]
[1721412454037,0.01777688,66655.0,66654.0,0.0005]
[1721412454618,0.01877688,66655.0,66654.0,0.0065]
[1721412454822,0.01877688,66655.0,66654.0,0.006]
[1721412455818,0.01877688,66655.0,66654.0,0.0065]
[1721412456241,0.01877688,66655.0,66654.0,0.006]
[1721412457110,0.01904251,66655.0,66654.0,0.006]
[1721412457324,0.01904251,66655.0,66654.0,0.0065]
[1721412457587,0.01904251,66655.0,66654.0,0.006]
[1721412458423,0.01904251,66655.0,66654.0,0.005]
[1721412458623,0.01904251,66655.0,66654.0,0.0055]
[1721412458624,0.01988251,66655.0,66654.0,0.0055]
[1721412459895,0.01988251,66655.0,66654.0,0.005]
[1721412460316,0.00284,66655.0,66654.0,0.005]
[1721412460521,0.01989416,66655.0,66654.0,0.005]
[1721412460982,0.01989416,66655.0,66654.0,0.0055]
[1721412461292,0.01989416,66655.0,66654.0,0.005]
[1721412461717,0.01989416,66655.0,66654.0,0.0055]
[1721412461919,0.00284,66655.0,66654.0,0.80676674]
[1721412462166,0.00284,66655.0,66654.0,1.10632374]
[1721412462609,0.00284,66655.0,66654.0,1.40638074]
[1721412462825,0.00284,66655.0,66654.0,1.40138074]
[1721412462826,0.00184,66655.0,66654.0,1.40138074]
[1721412463323,0.00284,66655.0,66654.0,1.45538074]
[1721412463568,0.002294,66678.0,66670.0,0.149992]